bitfinex-derivatives/quotes_ETHF0:USTF0_20251003
["timestamp","ask_amount","ask_price","bid_price","bid_amount"]
[1759459744340,0.9523,4496.0,4495.9,0.81407069]
[1759459744542,1.234,4496.0,4495.9,0.81407069]
[1759459745738,1.234,4496.0,4495.9,0.00237069]
[1759459746041,1.234,4496.0,4495.9,0.22437069]
[1759459746842,1.234,4496.0,4495.9,0.53097069]
[1759459748344,1.234,4496.0,4495.9,0.81407069]
[1759459749242,0.477,4496.5,4496.4,0.4]
[1759459749445,0.477,4496.5,4496.4,4.3379]
[1759459749446,0.9523,4496.5,4496.4,4.3379]
[1759459749648,0.9523,4496.5,4496.4,4.0195]
[1759459750046,1.234,4496.5,4496.4,3.5144]
[1759459750240,1.234,4496.5,4496.4,3.7364]
[1759459750542,0.9523,4496.5,4496.4,4.3379]
[1759459751648,0.9523,4496.5,4496.4,4.1159]
[1759459751848,0.9523,4496.5,4496.4,4.3379]
[1759459752144,0.4753,4496.5,4496.4,4.3379]
[1759459753441,0.1769,4497.0,4496.9,0.3066]
[1759459753642,0.1769,4497.0,4496.9,0.8117]
[1759459753643,0.7547,4497.0,4496.9,0.8117]
[1759459753937,0.7547,4497.0,4496.9,0.5286]
[1759459754142,1.23,4497.0,4496.9,0.5286]
[1759459755950,1.23,4497.0,4496.9,1.21166]
[1759459756144,0.4753,4497.0,4496.9,1.53006]
[1759459756447,0.7714,4497.0,4496.9,1.1301]
[1759459756637,0.9523,4497.0,4496.9,1.1301]
[1759459756841,1.234,4497.0,4496.9,0.8117]
[1759459757244,1.234,4497.0,4496.9,0.222]
[1759459758852,1.234,4497.0,4496.9,0.5286]
[1759459760461,1.234,4497.0,4496.9,0.8117]
[1759459760755,1.234,4497.0,4496.9,1.1301]
[1759459761660,1.234,4497.0,4496.9,0.8117]
[1759459762151,1.234,4497.0,4496.9,1.21166]
[1759459762552,1.234,4497.0,4496.9,1.53006]
[1759459763461,0.9523,4497.0,4496.9,1.53006]
[1759459763650,0.9523,4497.0,4496.9,4.3379]
[1759459764857,0.9523,4497.0,4496.9,3.2078]
[1759459764858,1.2366,4497.0,4496.9,3.2078]
[1759459765061,1.0256,4496.4,4496.3,3.2078]
[1759459765262,1.0256,4496.4,4496.3,3.7319]
[1759459765964,1.0256,4496.4,4496.3,4.13191]
[1759459766162,1.0256,4496.4,4496.3,4.41091]
[1759459767268,1.0256,4496.4,4496.3,4.18891]
[1759459767564,1.0256,4496.4,4496.3,3.7329]
[1759459767759,1.0256,4496.4,4496.3,3.4308]
[1759459768766,1.1949,4496.0,4495.9,0.30447069]
[1759459768966,1.1949,4496.0,4495.9,0.52747069]
[1759459769863,1.1949,4496.0,4495.9,1.20651069]
[1759459771463,0.4582,4496.0,4495.9,1.29001069]
[1759459771669,0.4582,4496.0,4495.9,1.51301069]
[1759459771870,1.1822,4496.5,4496.4,0.294]
[1759459772075,1.1822,4496.5,4496.4,0.517]
[1759459772374,1.1822,4496.5,4496.4,0.8136]
[1759459773177,1.1822,4496.5,4496.4,1.1165]
[1759459773478,1.1822,4496.5,4496.4,0.8136]
[1759459774378,1.1822,4496.5,4496.4,0.223]
[1759459774874,1.1822,4496.5,4496.4,0.517]
[1759459776175,1.1822,4496.5,4496.4,0.8136]
[1759459776375,0.1809,4497.0,4496.9,0.294]
[1759459776574,1.23566774,4497.0,4496.9,0.8136]
[1759459777079,1.65866774,4497.0,4496.9,0.8136]
[1759459780686,1.65866774,4497.0,4496.9,4.72426]
[1759459780882,1.1938,4497.0,4496.9,4.72426]
[1759459781086,1.1938,4497.0,4496.9,4.42136]
[1759459782490,1.1938,4497.0,4496.9,4.0214]
[1759459784791,1.1938,4497.0,4496.9,4.42136]
[1759459786192,1.1938,4497.0,4496.9,4.72426]
[1759459786388,1.1938,4497.0,4496.9,4.72326]
[1759459786791,1.1938,4497.0,4496.9,4.42036]
[1759459787893,1.1938,4497.0,4496.9,4.72326]
[1759459788093,1.1938,4497.0,4496.9,4.42036]
[1759459789692,1.1938,4497.0,4496.9,4.0204]
[1759459790293,1.1938,4497.0,4496.9,4.42036]
[1759459790792,0.8902,4497.0,4496.9,4.72326]
[1759459791187,1.1938,4497.0,4496.9,3.7984]
[1759459791383,1.1938,4497.0,4496.9,4.0204]
[1759459792196,1.1938,4497.0,4496.9,4.42036]
[1759459792890,1.1938,4497.0,4496.9,4.72326]
[1759459794598,0.6039,4497.0,4496.9,4.72326]
[1759459794797,0.423,4497.0,4496.9,4.72326]
[1759459796596,3.2078,4497.9,4497.5,0.39989]
[1759459796896,3.2078,4497.9,4497.7,1.29338]
[1759459796897,0.75025417,4497.8,4497.7,1.29338]
[1759459797096,0.46395417,4497.8,4497.7,4.72318]
[1759459797298,0.1693,4498.0,4497.9,0.8935]
[1759459797492,0.1693,4498.0,4497.9,1.1155]
[1759459797693,0.4556,4498.0,4497.9,1.1155]
[1759459797897,0.8786,4498.0,4497.9,1.1155]
[1759459798085,0.8786,4498.0,4497.9,1.51537]
[1759459798490,0.8786,4498.0,4497.9,1.1155]
[1759459799498,0.8786,4498.0,4497.9,1.51537]
[1759459799700,0.423,4498.0,4497.9,1.51537]
[1759459800196,1.1882,4498.0,4497.9,0.516]
[1759459800495,1.0129,4497.3,4497.2,3.90172]
[1759459800799,1.0129,4497.3,4497.2,0.222]
[1759459802592,0.4314,4497.2,4497.0,3.2078]
[1759459802798,1.0122,4497.2,4497.1,0.222]
[1759459803697,1.0122,4497.2,4497.1,0.5286]
[1759459803897,1.0122,4497.2,4497.1,0.8221]
[1759459805400,1.0122,4497.2,4497.1,0.5296]
[1759459805799,1.0122,4497.2,4497.1,0.92954]
[1759459807308,0.4314,4497.1,4497.0,3.2078]
[1759459807510,1.0122,4497.1,4497.0,3.4308]
[1759459809405,1.0122,4497.1,4497.0,3.2078]
[1759459809606,0.5808,4496.6,4496.5,3.2078]
[1759459809810,1.0122,4496.6,4496.5,3.4308]
[1759459810808,1.0122,4496.6,4496.5,4.13739]
[1759459813811,1.0122,4496.6,4496.5,4.43089]
[1759459815116,0.4314,4496.6,4496.5,4.71859]
[1759459815704,0.4492,4497.0,4496.9,0.6001]
[1759459815914,0.4314,4497.0,4496.9,1.50976]
[1759459817811,0.4575,4497.5,4497.4,0.8878]
[1759459818112,0.92232694,4497.5,4497.4,1.1098]
[1759459818312,1.35372694,4497.5,4497.4,1.1098]
[1759459819015,1.35372694,4497.5,4497.4,0.8221]
[1759459820514,1.65232694,4497.5,4497.4,0.8221]
[1759459820711,1.65232694,4497.5,4497.4,0.5286]
[1759459822119,1.65232694,4497.5,4497.4,0.3066]
[1759459822316,1.1875,4497.5,4497.4,0.5286]
[1759459822518,1.65229905,4497.5,4497.4,0.5286]
[1759459822919,1.65229905,4497.5,4497.4,0.3066]
[1759459823120,1.65229905,4497.5,4497.4,0.5286]
[1759459825018,1.65229905,4497.5,4497.4,0.8119]
[1759459825608,0.4314,4497.5,4497.4,1.48801]
[1759459825810,0.6796,4497.9,4497.8,0.569]
[1759459826021,1.14335777,4497.9,4497.8,0.791]
[1759459826214,1.41465777,4497.9,4497.8,0.791]
[1759459827313,1.41465777,4497.9,4497.8,1.0672]
[1759459827509,1.41465777,4497.9,4497.8,1.46708]
[1759459827816,1.14335777,4497.9,4497.8,1.0672]
[1759459829017,1.14335777,4497.9,4497.8,0.791]
[1759459831329,1.14335777,4497.9,4497.8,1.19088]
[1759459831822,1.41135777,4497.9,4497.8,0.791]
[1759459832125,1.41135777,4497.9,4497.8,1.46358]
[1759459832419,3.3831,4498.5,4497.8,0.222]
[1759459832420,0.293,4498.3,4497.8,0.222]
[1759459832621,0.4332,4498.4,4498.3,0.8111]
[1759459832831,0.4332,4498.4,4498.3,1.43293]
[1759459833125,0.16926451,4499.0,4498.3,1.43293]
[1759459833126,1.16346451,4499.0,4498.9,0.2699]
[1759459833426,1.62700938,4499.0,4498.9,0.4919]
[1759459835024,0.7256,4498.5,4498.4,0.2699]
[1759459835221,0.7256,4498.5,4498.2,3.2078]
[1759459835618,0.561,4498.3,4498.2,3.2078]
[1759459835816,0.9942,4498.3,4498.2,3.2078]
[1759459837420,0.9942,4498.3,4498.2,3.4298]
[1759459837820,0.9942,4498.3,4498.2,3.2078]
[1759459838625,0.9942,4498.3,4498.2,3.60764]
[1759459839226,0.9942,4498.3,4498.2,3.87754]
[1759459839427,0.9942,4498.3,4498.2,3.4777]
[1759459842127,0.9942,4498.3,4498.2,3.87754]
[1759459842318,0.9942,4498.3,4498.2,3.4777]
[1759459842727,0.9942,4498.3,4498.2,3.87754]
[1759459843320,0.9942,4498.3,4498.2,4.14604]
[1759459844226,0.9942,4498.3,4498.2,3.4777]
[1759459844434,0.561,4497.8,4497.7,3.4777]
[1759459844626,0.9942,4497.8,4497.7,3.2078]
[1759459844933,0.9942,4497.8,4497.7,3.4298]
[1759459845234,0.1646,4497.5,4497.2,3.2078]
[1759459845435,0.9942,4497.3,4497.2,3.4777]
[1759459845628,0.9942,4497.3,4497.2,3.6997]
[1759459847033,0.9942,4497.3,4497.2,4.09963]
[1759459847532,0.9942,4497.3,4497.2,3.2078]
[1759459847736,0.7256,4497.0,4496.9,0.2699]
[1759459847929,0.7256,4497.0,4496.9,0.222]
[1759459848329,1.1588,4497.0,4496.9,0.222]
[1759459849025,1.1588,4497.0,4496.9,0.4919]
[1759459849230,0.5978,4497.0,4496.9,1.0331]
[1759459849835,0.8908,4497.0,4496.9,1.0331]
[1759459850936,0.8908,4497.0,4496.9,0.7604]
[1759459851128,1.1588,4497.0,4496.9,0.7604]
[1759459851324,0.8658,4497.0,4496.9,0.7604]
[1759459851530,0.7262,4497.4,4497.3,0.2685]
[1759459851730,0.7262,4497.4,4497.3,0.7604]
[1759459851930,0.9942,4497.4,4497.3,0.7604]
[1759459854339,0.4332,4497.4,4497.3,1.43302]
[1759459854530,3.9334,4498.0,4497.9,0.5384]
[1759459854838,0.4576,4498.0,4497.9,1.43297]
[1759459855039,0.8908,4498.0,4497.9,1.43297]
[1759459855737,0.8908,4498.0,4497.9,0.7604]
[1759459857940,0.8908,4498.0,4497.9,1.16027]
[1759459859340,0.8908,4498.0,4497.9,1.43297]
[1759459860839,0.8908,4498.0,4497.9,0.7604]
[1759459861541,0.4332,4498.0,4497.9,1.43297]
[1759459861842,0.7115,4498.4,4498.3,0.94732]
[1759459862039,0.7115,4498.4,4498.3,1.16932]
[1759459862237,0.7115,4498.4,4498.3,1.42732]
[1759459862838,0.7115,4498.4,4498.3,4.63512]
[1759459863043,0.4285,4498.4,4498.3,4.63512]
[1759459863245,0.283,4498.8,4498.7,0.93589]
[1759459863438,0.283,4498.8,4498.7,1.42729]
[1759459863639,0.7115,4498.8,4498.7,1.42729]
[1759459864544,0.7115,4498.8,4498.7,0.7695]
[1759459864745,0.9813,4498.8,4498.7,0.7695]
[1759459865549,0.9813,4498.8,4498.7,1.1693]
[1759459865737,0.9813,4498.8,4498.7,1.4273]
[1759459865941,0.9813,4498.8,4498.7,1.1693]
[1759459866441,0.4285,4498.8,4498.7,1.4273]
[1759459867146,0.7115,4498.8,4498.7,1.1693]
[1759459867945,0.9813,4498.8,4498.7,1.1693]
[1759459868349,0.9813,4498.8,4498.7,0.9473]
[1759459868549,0.9813,4498.8,4498.7,1.4273]
[1759459868550,0.7115,4498.8,4498.7,1.4273]
[1759459868752,0.4285,4498.8,4498.7,1.4273]
[1759459871352,0.7115,4498.8,4498.7,1.1693]
[1759459871744,0.7115,4498.8,4498.7,0.7695]
[1759459871946,0.9813,4498.8,4498.3,3.2078]
[1759459872150,1.1588,4498.5,4498.4,0.2694]
[1759459872454,1.1588,4498.5,4498.4,0.4914]
[1759459873049,1.1588,4498.5,4498.4,0.89122]
[1759459874348,1.1588,4498.5,4498.4,0.2694]
[1759459874658,0.9813,4498.4,4498.3,3.2078]
[1759459874954,0.9813,4498.4,4498.3,3.4298]
[1759459878459,0.9813,4498.4,4498.3,3.2078]
[1759459878659,0.9813,4498.4,4498.3,3.4298]
[1759459879460,0.9813,4498.4,4498.3,3.6992]
[1759459880762,0.9813,4498.4,4498.3,4.09903]
[1759459881565,0.9813,4498.4,4498.3,0.89123]
[1759459883165,0.9813,4498.4,4498.3,1.16933]
[1759459883466,0.7115,4498.9,4498.8,0.2781]
[1759459883757,1.44395276,4498.9,4498.8,0.7695]
[1759459891160,1.44395276,4498.9,4498.8,0.4914]
[1759459894875,1.44395276,4498.9,4498.8,0.222]
[1759459895670,0.4272,4499.9,4499.1,0.99938]
[1759459895966,0.2793,4499.9,4499.7,3.2078]
[1759459896173,0.9696,4499.9,4499.8,0.222]
[1759459896367,0.9696,4499.9,4499.7,3.6075]
[1759459896368,0.7065,4499.8,4499.7,3.2078]
[1759459896675,0.7065,4499.8,4499.7,3.43173004]
[1759459896676,0.97161703,4499.8,4499.7,3.43173004]
[1759459899377,0.70851703,4499.8,4499.7,3.43173004]
[1759459899576,0.42921703,4499.8,4499.7,3.43173004]
[1759459901469,0.00201703,4499.8,4499.7,3.43173004]
[1759459901670,0.42921703,4499.8,4499.7,3.43173004]
[1759459903084,0.70851703,4499.8,4499.7,3.43173004]
[1759459904784,0.70851703,4499.8,4499.7,3.83144004]
[1759459905186,0.97161703,4499.8,4499.7,3.83144004]
[1759459906374,0.97161703,4499.8,4499.7,3.60944004]
[1759459906773,0.97161703,4499.8,4499.7,3.83144004]
[1759459909584,0.97161703,4499.8,4499.7,3.20973004]
[1759459909894,0.97161703,4499.8,4499.7,3.83144004]
[1759459911289,5.97161703,4499.8,4499.7,0.00193004]
[1759459913791,0.97161703,4499.8,4499.7,0.40164004]
[1759459914589,0.97161703,4499.8,4499.7,0.00193004]
[1759459915086,0.70851703,4499.8,4499.7,0.40164004]
[1759459915283,0.42921703,4499.8,4499.7,3.60944004]
[1759459917100,0.97161703,4499.8,4499.7,0.22393004]
[1759459918502,0.70851703,4499.8,4499.7,0.22393004]
[1759459918797,0.42921703,4499.8,4499.7,0.22393004]
[1759459920002,0.00201703,4499.8,4499.7,0.22393004]
[1759459920201,0.70851703,4499.8,4499.7,0.22393004]
[1759459920403,0.42921703,4499.8,4499.7,0.22393004]
[1759459921697,0.97161703,4499.8,4499.7,0.00193004]
[1759459921903,0.97161703,4499.8,4499.7,0.22393004]
[1759459922995,0.97161703,4499.8,4499.7,0.00193004]
[1759459923200,5.97161703,4499.8,4499.7,0.00193004]
[1759459923503,5.97161703,4499.8,4499.7,0.22393004]
[1759459924206,6.41945399,4499.8,4499.7,0.22393004]
[1759459925004,6.41945399,4499.8,4499.7,0.00193004]
[1759459925204,6.41945399,4499.8,4499.7,0.22393004]
[1759459928700,6.41945399,4499.8,4499.7,0.00193004]
[1759459928897,0.44783696,4499.8,4499.7,5.62474004]
[1759459929204,0.4509,4501.0,4500.9,0.8128]
[1759459929398,0.1551,4502.0,4501.4,0.60616]
[1759459929601,0.7197,4502.0,4501.9,0.4132]
[1759459929799,0.7197,4502.0,4501.9,0.6352]
[1759459930100,0.72206391,4502.0,4501.9,0.6352]
[1759459930311,0.15746391,4502.0,4501.9,0.4132]
[1759459930500,0.15746391,4502.0,4501.9,0.7643]
[1759459931103,0.57506391,4502.0,4501.9,0.7643]
[1759459931295,0.85856391,4502.0,4501.9,0.6352]
[1759459933606,0.85856391,4502.0,4501.9,0.222]
[1759459933607,1.13966391,4502.0,4501.9,0.222]
[1759459934008,1.13966391,4502.0,4501.9,0.4286]
[1759459934307,1.13966391,4502.0,4501.9,0.6352]
[1759459935908,0.57506391,4502.0,4501.9,0.7643]
[1759459936210,0.85856391,4502.0,4501.9,0.6352]
[1759459936514,0.00236391,4502.0,4501.9,0.5423]
[1759459936814,0.57506391,4502.0,4501.9,0.7643]
[1759459939812,1.13966391,4502.0,4501.8,0.39952]
[1759459940018,1.13966391,4502.0,4501.9,0.4286]
[1759459943610,0.4176,4501.9,4501.5,3.2078]
[1759459943916,0.9822,4501.8,4501.7,0.39953]
[1759459944611,0.4176,4501.7,4501.5,3.2078]
[1759459944806,0.9822,4501.6,4501.5,3.60735]
[1759459945011,0.9822,4501.6,4501.5,3.82935]
[1759459947314,0.9822,4501.6,4501.5,3.60735]
[1759459947616,0.9822,4501.6,4501.5,3.82935]
[1759459948614,0.9822,4501.6,4501.5,3.2078]
[1759459948814,0.9822,4501.6,4501.5,3.4298]
[1759459949214,0.9822,4501.6,4501.5,3.82935]
[1759459949415,0.9822,4501.6,4501.5,3.60735]
[1759459949616,0.9822,4501.6,4501.5,3.4298]
[1759459950217,0.9822,4501.6,4501.5,3.82935]
[1759459950619,0.9822,4501.6,4501.5,3.60735]
[1759459950822,0.9822,4501.6,4501.5,3.82935]
[1759459951620,0.5431,4501.0,4500.9,3.2078]
[1759459951921,0.1574,4501.5,4501.4,0.39956]
[1759459952124,0.4157,4501.5,4501.4,0.99476]
[1759459952521,0.8014,4501.5,4501.4,0.99476]
[1759459952712,1.0758,4501.5,4501.4,0.99476]
[1759459955319,1.0758,4501.5,4501.4,4.20256]
[1759459955320,0.8014,4501.5,4501.4,4.20256]
[1759459955520,0.3857,4501.5,4501.4,4.31916]
[1759459956423,0.5431,4501.5,4501.4,4.31916]
[1759459959927,0.8014,4501.5,4501.4,4.20256]
[1759459960126,0.8014,4501.5,4501.4,3.98056]
[1759459960329,1.0758,4501.5,4501.4,3.82936]
[1759459960828,0.5431,4501.5,4501.4,4.31916]
[1759459963432,0.8014,4501.5,4501.4,4.20256]
[1759459963627,0.8014,4501.5,4501.4,3.98056]
[1759459963836,1.0758,4501.5,4501.4,4.20256]
[1759459965032,1.0758,4501.5,4501.4,3.98056]
[1759459965229,1.0758,4501.5,4501.4,4.20256]
[1759459966233,1.0758,4501.5,4501.4,3.6164]
[1759459967240,1.0758,4501.5,4501.4,3.3944]
[1759459967437,1.0758,4501.5,4501.4,3.4298]
[1759459968131,1.0758,4501.5,4501.4,3.2078]
[1759459968328,1.0758,4501.5,4501.4,3.4298]
[1759459969037,1.0758,4501.5,4501.4,3.6164]
[1759459969338,1.0758,4501.5,4501.4,4.20256]
[1759459969737,1.0758,4501.5,4501.4,3.803]
[1759459971235,1.52308504,4501.5,4501.4,3.803]
[1759459971636,1.52308504,4501.5,4501.4,3.3944]
[1759459971936,1.52308504,4501.5,4501.4,3.4298]
[1759459971937,1.0758,4501.5,4501.4,3.4298]
[1759459972129,1.52321403,4501.5,4501.4,3.4298]
[1759459972332,1.52321403,4501.5,4501.4,3.6164]
[1759459975141,1.52321403,4501.5,4501.4,4.20256]
[1759459975337,1.52321403,4501.5,4501.4,3.803]
[1759459975532,0.99051403,4501.5,4501.4,4.20256]
[1759459975738,0.99051403,4501.5,4501.4,4.31916]
[1759459975939,0.5431,4501.5,4501.4,4.31916]
[1759459976240,1.24907383,4501.5,4501.4,3.803]
[1759459976441,1.52347383,4501.5,4501.4,3.803]
[1759459976640,0.99077383,4501.5,4501.4,4.31916]
[1759459977439,0.8014,4501.5,4501.4,4.31916]
[1759459978743,0.5431,4501.5,4501.4,4.31916]
[1759459979239,0.3857,4501.5,4501.4,4.31916]
[1759459980239,0.3857,4501.9,4501.8,0.4898]
[1759459980434,0.44774715,4501.9,4501.8,1.11132]
[1759459980636,0.00236391,4502.0,4501.9,0.88931]
[1759459980838,0.00236391,4502.0,4501.9,5.28327731]
[1759459982041,0.4024,4502.9,4502.8,0.4216]
[1759459982238,0.4024,4502.9,4502.8,0.6436]
[1759459982944,0.40480842,4502.9,4502.8,0.6436]
[1759459983149,0.67760842,4502.9,4502.8,0.3212]
[1759459983346,0.56590842,4502.9,4502.7,3.2078]
[1759459983646,0.9219,4502.8,4502.7,3.2078]
[1759459983839,0.9219,4502.8,4502.7,3.4298]
[1759459984040,0.9219,4502.8,4502.7,3.5904]
[1759459984543,0.6532,4502.8,4502.7,3.751]
[1759459985239,0.6532,4502.8,4502.7,3.529]
[1759459985440,0.9219,4502.8,4502.7,3.5904]
[1759459989348,0.3804,4502.8,4502.7,3.8514]
[1759459989736,0.02440842,4502.9,4502.8,0.39943]
[1759459989942,0.02440842,4502.9,4502.8,0.82103]
[1759459991847,0.3804,4503.8,4503.6,0.39935]
[1759459992046,0.3804,4503.8,4503.7,0.94055]
[1759459992549,0.5378,4504.0,4503.9,0.2432]
[1759459992750,0.5378,4504.0,4503.9,0.4652]
[1759459992939,0.81227063,4504.0,4503.9,0.46735241]
[1759459993340,0.53947063,4504.0,4503.9,0.86669241]
[1759459993645,0.80587063,4504.0,4503.9,0.86669241]
[1759459993847,0.80587063,4504.0,4503.9,0.24535241]
[1759459993848,1.07457063,4504.0,4503.9,0.24535241]
[1759459994148,1.07457063,4504.0,4503.9,0.46735241]
[1759459994947,0.53307063,4504.0,4503.9,0.54335241]
[1759459995154,0.80587063,4504.0,4503.9,0.46735241]
[1759459996138,0.80587063,4504.0,4503.9,0.24535241]
[1759459996345,0.80587063,4504.0,4503.9,0.46735241]
[1759459998147,0.80587063,4504.0,4503.9,0.86669241]
[1759459998544,0.00167063,4504.0,4503.9,0.94269241]
[1759459999052,0.38207063,4504.0,4503.9,0.94269241]
[1759460000146,0.80587063,4504.0,4503.9,0.86669241]
[1759460000351,0.53307063,4504.0,4503.9,0.94269241]
[1759460001450,0.00167063,4504.0,4503.9,0.94269241]
[1759460002548,0.00167063,4504.0,4503.9,5.94269241]
[1759460002748,0.5314,4505.0,4504.9,0.71135]
[1759460002948,0.3804,4505.4,4505.3,0.1932]
[1759460003148,0.3804,4505.4,4505.3,0.5341]
[1759460003548,0.3804,4505.4,4505.3,0.4598]
[1759460003856,0.38211374,4505.4,4505.3,0.5341]
[1759460005248,0.92361374,4505.4,4505.3,0.1189]
[1759460005449,0.92361374,4505.4,4505.3,0.3409]
[1759460006347,0.65491374,4505.4,4505.3,0.4598]
[1759460006548,0.90521374,4505.4,4505.3,0.2378]
[1759460006754,0.90521374,4505.4,4505.3,0.222]
[1759460007054,0.90521374,4505.4,4505.3,0.1018]
[1759460007258,0.90521374,4505.4,4505.3,0.3238]
[1759460007650,0.90521374,4505.4,4505.3,0.4256]
[1759460008356,0.38211374,4505.4,4505.3,0.4892]
[1759460009758,0.89931374,4505.4,4505.3,0.2036]
[1759460009953,0.89931374,4505.4,4505.3,0.82481]
[1759460010557,0.89931374,4505.4,4504.9,44.0078]
[1759460010858,0.89091374,4505.4,4505.3,0.50101]
[1759460011164,0.89091374,4505.4,4505.3,0.82481]
[1759460012155,0.37371374,4505.4,4505.3,0.82481]
[1759460012355,0.88011374,4505.4,4505.3,0.1018]
[1759460012556,0.88011374,4505.4,4505.3,0.222]
[1759460013060,0.88011374,4505.4,4505.3,0.62121]
[1759460015261,0.88011374,4505.4,4505.3,0.71871]
[1759460015759,0.88011374,4505.4,4505.3,0.222]
[1759460015953,0.88011374,4505.4,4505.3,0.62121]
[1759460017762,0.88011374,4505.4,4505.3,0.39921]
[1759460017956,0.88011374,4505.4,4505.3,0.62121]
[1759460020261,0.88011374,4505.4,4505.2,0.39921]
[1759460020458,0.88011374,4505.4,4505.1,0.39923]
[1759460020667,0.50811374,4505.4,4505.2,0.62122]
[1759460020860,0.8876,4505.3,4505.2,0.62122]
[1759460021167,0.8876,4505.3,4505.2,0.222]
[1759460021465,0.8876,4505.3,4505.2,0.62122]
[1759460021659,0.8876,4505.3,4505.2,0.222]
[1759460021860,0.8876,4505.3,4505.1,0.39922]
[1759460022056,0.8876,4505.3,4505.2,0.222]
[1759460022465,0.8876,4505.3,4505.2,0.62122]
[1759460023766,0.8876,4505.3,4505.2,0.222]
[1759460024267,0.8876,4505.3,4505.2,0.62122]
[1759460024461,0.8876,4505.3,4505.2,0.222]
[1759460026271,0.8876,4505.3,4505.2,0.62121]
[1759460026970,0.8876,4505.3,4505.2,0.222]
[1759460027480,0.8876,4505.3,4505.2,0.62122]
[1759460029271,0.8876,4505.3,4505.2,0.71872]
[1759460029465,0.8876,4505.3,4505.2,0.81622]
[1759460030572,0.8876,4505.3,4505.2,0.71872]
[1759460030874,0.8876,4505.3,4505.2,0.62122]
[1759460031773,0.8876,4505.3,4505.2,0.71872]
[1759460033076,0.8876,4505.3,4505.2,0.222]
[1759460034785,0.8876,4505.3,4505.2,0.62122]
[1759460035888,0.8876,4505.3,4505.2,0.222]
[1759460037691,0.8876,4505.3,4505.2,0.62122]
[1759460039594,0.8876,4505.3,4505.2,0.71872]
[1759460039986,0.8876,4505.3,4505.2,0.62122]
[1759460040186,0.8876,4505.3,4505.2,0.222]
[1759460040387,0.8876,4505.3,4505.2,0.62122]
[1759460040595,0.8876,4505.3,4505.2,0.222]
[1759460040887,1.0448,4505.0,4504.9,3.2078]
[1759460041092,1.0448,4505.0,4504.9,3.4298]
[1759460041988,1.0448,4505.0,4504.9,3.82905]
[1759460042583,1.49127984,4505.0,4504.9,3.4298]
[1759460042787,1.49127984,4505.0,4504.9,3.2078]
[1759460042992,1.49127984,4505.0,4504.9,3.4298]
[1759460043188,1.49127984,4505.0,4504.3,3.2078]
[1759460043481,0.8871,4504.4,4504.3,3.2078]
[1759460043891,0.8871,4504.4,4504.3,3.4298]
[1759460044091,0.8871,4504.4,4504.3,3.2078]
[1759460044285,1.0336,4504.0,4503.9,0.07815241]
[1759460044482,0.5286,4504.0,4503.9,0.37615241]
[1759460044793,1.0336,4504.0,4503.9,0.15415241]
[1759460044996,1.0336,4504.0,4503.9,0.30015241]
[1759460046395,1.0336,4504.0,4503.9,0.22415241]
[1759460046895,1.0336,4504.0,4503.9,0.00215241]
[1759460047093,1.0336,4504.0,4503.9,0.30015241]
[1759460047696,1.0336,4504.0,4503.9,0.22415241]
[1759460048396,1.0336,4504.0,4503.9,0.00215241]
[1759460048601,1.0336,4504.0,4503.9,0.22415241]
[1759460050197,1.0336,4504.0,4503.9,0.00215241]
[1759460050591,1.0336,4504.0,4503.9,0.22415241]
[1759460051493,1.0336,4504.0,4503.9,0.00215241]
[1759460051799,0.8871,4503.3,4503.2,3.2078]
[1759460051998,0.8871,4503.3,4503.2,3.4298]
[1759460052491,0.8871,4503.3,4503.2,3.9052]
[1759460052690,0.3821,4503.8,4503.7,0.1995]
[1759460052895,0.631,4503.8,4503.7,3.98116]
[1759460053899,0.3821,4503.8,4503.7,4.02866]
[1759460054300,0.631,4503.8,4503.7,3.98116]
[1759460054903,0.8871,4503.8,4503.7,3.98116]
[1759460057304,0.8871,4503.8,4503.7,3.75916]
[1759460057503,0.8871,4503.8,4503.7,3.98116]
[1759460058804,0.631,4503.8,4503.7,3.98116]
[1759460059297,0.8871,4503.8,4503.7,3.98116]
[1759460059701,0.8871,4503.8,4503.7,3.3598]
[1759460059897,0.8871,4503.8,4503.7,3.2078]
[1759460060202,0.8871,4503.8,4503.2,0.00156904]
[1759460060203,0.8871,4503.3,4503.2,3.68476904]
[1759460060398,0.8871,4503.3,4503.2,3.98276904]
[1759460066603,0.5182,4503.5,4503.4,0.51897]
[1759460066807,0.5182,4503.5,4503.4,0.77837]
[1759460067406,0.3717,4503.5,4503.4,0.77837]
[1759460067708,0.5204,4503.5,4503.4,0.77837]
[1759460067906,0.3717,4503.9,4503.8,0.49653]
[1759460068103,0.3717,4503.9,4503.8,3.98613]
[1759460068303,0.3717,4503.9,4503.8,3.94873]
[1759460069909,0.3717,4503.9,4503.8,3.98613]
[1759460070405,0.6126,4503.9,4503.8,3.72673]
[1759460070610,0.8495,4503.9,4503.8,3.5494]
[1759460071706,0.3717,4503.9,4503.8,3.5837]
[1759460072413,0.6282,4503.9,4503.8,3.5494]
[1759460072806,0.6282,4503.9,4503.8,3.94874]
[1759460075014,0.867,4503.9,4503.8,3.5494]
[1759460075214,0.867,4503.9,4503.8,3.94874]
[1759460076108,0.867,4503.9,4503.8,4.91184551]
[1759460076307,0.3717,4503.9,4503.8,3.98304]
[1759460077810,0.6282,4503.9,4503.8,3.94874]
[1759460083014,0.3761,4505.1,4505.0,0.0343]
[1759460083318,0.3761,4505.1,4505.0,3.5739]
[1759460084111,0.37781374,4505.4,4505.3,0.50901]
[1759460084323,0.37781374,4505.4,4505.3,0.73101]
[1759460084514,0.37781374,4505.4,4505.3,0.76531]
[1759460086717,0.63431374,4505.4,4505.3,0.73101]
[1759460091224,0.87311374,4505.4,4505.3,0.67611]